fUSD/lending_fUSD_20250806
["ID","MTS","AMOUNT","RATE_DAILY","PERIOD"]
[377605468,1754452250508,-571.7,0.00035616,14]
[377605469,1754452250517,-976.53,0.00035616,14]
[377605470,1754452250526,-2096.52,0.00035616,14]
[377605471,1754452250535,-975.85,0.00035616,14]
[377605472,1754452250544,-400.0,0.00035616,14]
[377605473,1754452250555,-1342.52,0.00035616,14]
[377605474,1754452250566,-400.0,0.00035616,14]
[377605475,1754452250575,-400.0,0.00035616,14]
[377605476,1754452250585,-423.06,0.00035616,14]
[377605477,1754452250594,-656.23,0.00035616,14]
[377605478,1754452250604,-400.0,0.00035616,14]
[377605479,1754452250613,-400.0,0.00035616,14]
[377605480,1754452250622,-400.0,0.00035616,14]
[377605481,1754452250631,-400.0,0.00035616,14]
[377605482,1754452250641,-676.95,0.00035616,14]
[377605483,1754452250650,-400.0,0.00035616,14]
[377605484,1754452250661,-400.0,0.00035616,14]
[377605485,1754452250671,-1968.76,0.00035616,14]
[377605486,1754452250682,-1549.63,0.00035616,14]
[377605487,1754452250691,-1408.63,0.00035616,14]
[377605488,1754452250700,-400.0,0.00035616,14]
[377605489,1754452250710,-1053.15,0.00035616,14]
[377605490,1754452250719,-400.0,0.00035616,14]
[377605491,1754452250729,-1789.68,0.00035616,14]
[377605492,1754452250738,-962.0,0.00035616,14]
[377605493,1754452250748,-400.0,0.00035616,14]
[377605494,1754452250758,-1532.69,0.00035616,14]
[377605495,1754452250768,-2180.35,0.00035616,14]
[377605496,1754452250778,-1192.67,0.00035616,14]
[377605497,1754452250787,-400.0,0.00035616,14]
[377605498,1754452250796,-2714.38,0.00035616,14]
[377605499,1754452250806,-424.29,0.00035616,14]
[377605500,1754452250815,-400.0,0.00035616,14]
[377605501,1754452250825,-500.0,0.00035616,14]
[377605502,1754452250834,-400.0,0.00035616,14]
[377605503,1754452250844,-1658.74,0.00035616,14]
[377605504,1754452250854,-400.0,0.00035616,14]
[377605505,1754452250863,-400.0,0.00035616,14]
[377605506,1754452250873,-1432.79,0.00035616,14]
[377605507,1754452250882,-412.44888065,0.00035616,14]
[377605508,1754452250892,-1240.11,0.00035616,14]
[377605509,1754452250901,-400.60710576,0.00035616,14]
[377605510,1754452250911,-400.0,0.00035616,14]
[377605511,1754452250920,-560.5,0.00035616,14]
[377605512,1754452250933,-2779.73,0.00035616,14]
[377605513,1754452250942,-485.22,0.00035616,14]
[377605514,1754452250951,-1874.53,0.00035616,14]
[377605515,1754452250962,-890.84,0.00035616,14]
[377605516,1754452250971,-400.0,0.00035616,14]
[377605517,1754452250980,-400.0,0.00035616,14]
[377605518,1754452250989,-1919.57,0.00035616,14]
[377605519,1754452250999,-400.0,0.00035616,14]
[377605520,1754452251010,-2951.29,0.00035616,14]
[377605521,1754452251020,-400.0,0.00035616,14]
[377605522,1754452251030,-1302.51,0.00035616,14]
[377605523,1754452251039,-899.55,0.00035616,14]
[377605524,1754452251048,-400.0,0.00035616,14]
[377605525,1754452251057,-659.6,0.00035616,14]
[377605526,1754452251066,-1664.87,0.00035616,14]
[377605527,1754452251075,-400.0,0.00035616,14]
[377605528,1754452251083,-1999.11,0.00035616,14]
[377605529,1754452251093,-400.0,0.00035616,14]
[377605530,1754452251102,-1269.17,0.00035616,14]
[377605531,1754452251111,-400.0,0.00035616,14]
[377605532,1754452251120,-1925.34,0.00035616,14]
[377605533,1754452251130,-587.45,0.00035616,14]
[377605534,1754452251139,-973.9,0.00035616,14]
[377605535,1754452251148,-835.91,0.00035616,14]
[377605536,1754452251157,-400.0,0.00035616,14]
[377605537,1754452251166,-300.0,0.00035616,14]
[377605538,1754452251175,-637.55,0.00035616,14]
[377605539,1754452251184,-400.0,0.00035616,14]
[377605540,1754452251193,-400.0,0.00035616,14]
[377605541,1754452251202,-1758.62,0.00035616,14]
[377605542,1754452251212,-400.0,0.00035616,14]
[377605543,1754452251221,-511.24,0.00035616,14]
[377605544,1754452251231,-400.0,0.00035616,14]
[377605545,1754452251240,-1942.27,0.00035616,14]
[377605546,1754452251250,-400.0,0.00035616,14]
[377605547,1754452251259,-400.0,0.00035616,14]
[377605548,1754452251268,-400.0,0.00035616,14]
[377605549,1754452251278,-630.77,0.00035616,14]
[377605550,1754452251287,-542.36,0.00035616,14]
[377605551,1754452251296,-418.92,0.00035616,14]
[377605552,1754452251306,-477.26,0.00035616,14]
[377605553,1754452251315,-500.0,0.00035616,10]
[377605554,1754452251324,-1177.1,0.00035616,14]
[377605555,1754452251333,-401.92364808,0.00035616,14]
[377605556,1754452251342,-1781.4,0.00035616,14]
[377605557,1754452251352,-400.0,0.00035616,14]
[377605558,1754452251361,-1215.06,0.00035616,14]
[377605559,1754452251370,-3885.86,0.00035616,14]
[377605560,1754452251379,-3133.38,0.00035616,14]
[377605561,1754452251388,-400.0,0.00035616,14]
[377605562,1754452251397,-641.35,0.00035616,14]
[377605563,1754452251407,-400.0,0.00035616,14]
[377605564,1754452251416,-400.0,0.00035616,14]
[377605565,1754452251425,-405.26,0.00035616,14]
[377605566,1754452251434,-1936.96,0.00035616,14]
[377605567,1754452251443,-769.21,0.00035616,14]
[377605568,1754452251454,-400.0,0.00035616,14]
[377605569,1754452251463,-500.0,0.00035616,30]
[377605570,1754452251472,-400.0,0.00035616,14]
[377605571,1754452251482,-2278.89,0.00035616,14]
[377605572,1754452251491,-840.82,0.00035616,14]
[377605573,1754452251501,-1893.0,0.00035616,14]
[377605574,1754452251510,-400.0,0.00035616,14]
[377605575,1754452251521,-2640.31,0.00035616,14]
[377605576,1754452251530,-837.97,0.00035616,14]
[377605577,1754452251539,-837.97,0.00035616,14]
[377605578,1754452251548,-837.97,0.00035616,14]
[377605579,1754452251558,-1378.56,0.00035616,14]
[377605580,1754452251567,-1318.4,0.00035616,14]
[377605581,1754452251577,-3266.12,0.00035616,14]
[377605582,1754452251586,-400.0,0.00035616,14]
[377605583,1754452251595,-837.97,0.00035616,14]
[377605584,1754452251604,-627.83,0.00035616,14]
[377605585,1754452251614,-837.97,0.00035616,14]
[377605586,1754452251623,-400.0,0.00035616,14]
[377605587,1754452251634,-837.97,0.00035616,14]
[377605588,1754452251643,-537.49,0.00035616,14]
[377605589,1754452251652,-837.97,0.00035616,14]
[377605590,1754452251662,-400.0,0.00035616,14]
[377605591,1754452251671,-837.97,0.00035616,14]
[377605592,1754452251680,-837.97,0.00035616,14]
[377605593,1754452251689,-837.97,0.00035616,14]
[377605594,1754452251699,-837.97,0.00035616,14]
[377605595,1754452251708,-837.97,0.00035616,14]
[377605596,1754452251717,-837.97,0.00035616,14]
[377605597,1754452251727,-1879.05,0.00035616,14]
[377605598,1754452251736,-400.0,0.00035616,14]
[377605599,1754452251746,-400.0,0.00035616,14]
[377605600,1754452251758,-995.41,0.00035616,14]
[377605601,1754452251768,-155.643466,0.00035616,14]
[377605602,1754452251777,-1443.17,0.00035616,14]
[377605603,1754452251786,-400.0,0.00035616,14]
[377605604,1754452251796,-400.0,0.00035616,14]
[377605605,1754452251805,-837.97,0.00035616,14]
[377605606,1754452251815,-837.97,0.00035616,14]
[377605607,1754452251824,-837.97,0.00035616,14]
[377605608,1754452251833,-400.0,0.00035616,14]
[377605609,1754452251842,-837.97,0.00035616,14]
[377605610,1754452251852,-837.97,0.00035616,14]
[377605611,1754452251862,-837.97,0.00035616,14]
[377605612,1754452251871,-837.97,0.00035616,14]
[377605613,1754452251880,-400.0,0.00035616,14]
[377605614,1754452251890,-837.97,0.00035616,14]
[377605615,1754452251899,-400.0,0.00035616,14]
[377605616,1754452251908,-837.97,0.00035616,14]
[377605617,1754452251921,-1069.91,0.00035616,14]
[377605618,1754452251931,-1426.95,0.00035616,14]
[377605619,1754452251940,-837.97,0.00035616,14]
[377605620,1754452251950,-838.18246395,0.00035616,14]
[377605621,1754452251959,-400.0,0.00035616,14]
[377605622,1754452251969,-3257.96,0.00035616,14]
[377605623,1754452251979,-400.0,0.00035616,14]
[377605624,1754452251988,-400.0,0.00035616,14]
[377605625,1754452251998,-1813.83,0.00035616,14]
[377605626,1754452252009,-400.0,0.00035616,14]
[377605627,1754452252018,-730.73,0.00035616,14]
[377605628,1754452252028,-1924.73,0.00035616,14]
[377605629,1754452252037,-400.0,0.00035616,14]
[377605630,1754452252047,-400.0,0.00035616,14]
[377605631,1754452252056,-400.0,0.00035616,14]
[377605632,1754452252065,-400.0,0.00035616,14]
[377605633,1754452252075,-458.4,0.00035616,14]
[377605634,1754452252084,-400.0,0.00035616,14]
[377605635,1754452252094,-1943.12,0.00035616,14]
[377605636,1754452252103,-306.52400451,0.00035616,14]
[377605637,1754452252113,-400.0,0.00035616,14]
[377605638,1754452252123,-721.55,0.00035616,14]
[377605639,1754452252133,-221.44775701,0.00035616,14]
[377605640,1754452252143,-2030.56,0.00035616,14]
[377605641,1754452252152,-400.0,0.00035616,14]
[377605642,1754452252161,-493.75,0.00035616,14]
[377605643,1754452252171,-1644.2,0.00035616,14]
[377605644,1754452252181,-400.0,0.00035616,14]
[377605645,1754452252190,-1698.85,0.00035616,14]
[377605646,1754452252199,-565.6,0.00035616,14]
[377605647,1754452252208,-2450.82,0.00035616,14]
[377605648,1754452252217,-488.71,0.00035616,14]
[377605649,1754452252226,-400.0,0.00035616,14]
[377605650,1754452252236,-2172.81,0.00035616,14]
[377605651,1754452252245,-1920.94,0.00035616,14]
[377605652,1754452252255,-401.80295837,0.00035616,14]
[377605653,1754452252265,-2356.84,0.00035616,14]
[377605654,1754452252274,-400.0,0.00035616,14]
[377605655,1754452252284,-400.0,0.00035616,14]
[377605656,1754452252293,-400.0,0.00035616,14]
[377605657,1754452252303,-1270.04,0.00035616,14]
[377605658,1754452252312,-400.0,0.00035616,14]
[377605659,1754452252322,-1889.5,0.00035616,14]
[377605660,1754452252331,-400.0,0.00035616,14]
[377605661,1754452252340,-1903.15,0.00035616,14]
[377605662,1754452252351,-791.48,0.00035616,14]
[377605663,1754452252361,-618.89,0.00035616,14]
[377605664,1754452252370,-1255.89,0.00035616,14]
[377605665,1754452252380,-400.0,0.00035616,14]
[377605666,1754452252389,-1457.05,0.00035616,14]
[377605667,1754452252399,-701.14,0.00035616,14]
[377605668,1754452252408,-400.0,0.00035616,14]
[377605669,1754452252417,-400.0,0.00035616,14]
[377605670,1754452252427,-465.02,0.00035616,14]
[377605671,1754452252437,-1076.4,0.00035616,14]
[377605672,1754452252447,-2421.29,0.00035616,14]
[377605673,1754452252455,-400.0,0.00035616,14]
[377605674,1754452252465,-1477.2,0.00035616,14]
[377605675,1754452252474,-400.0,0.00035616,14]
[377605676,1754452252483,-1511.38,0.00035616,14]
[377605677,1754452252492,-1045.82,0.00035616,14]
[377605678,1754452252502,-400.0,0.00035616,14]
[377605679,1754452252511,-492.88,0.00035616,14]
[377605680,1754452252520,-1231.8,0.00035616,14]
[377605681,1754452252628,-2080.66,0.00035616,14]
[377605682,1754452252638,-400.0,0.00035616,14]
[377605683,1754452252647,-1687.25,0.00035616,14]
[377605684,1754452252656,-400.0,0.00035616,14]
[377605685,1754452252665,-400.0,0.00035616,14]
[377605686,1754452252674,-400.0,0.00035616,14]
[377605687,1754452252683,-1578.62,0.00035616,14]
[377605688,1754452252692,-2107.14,0.00035616,14]
[377605689,1754452252702,-400.0,0.00035616,14]
[377605690,1754452252711,-1322.94,0.00035616,14]
[377605691,1754452252720,-949.83,0.00035616,14]
[377605692,1754452252729,-400.0,0.00035616,14]
[377605693,1754452252739,-751.55,0.00035616,14]
[377605694,1754452252748,-400.0,0.00035616,14]
[377605695,1754452252758,-400.0,0.00035616,14]
[377605696,1754452252767,-400.0,0.00035616,14]
[377605697,1754452252776,-984.84,0.00035616,14]
[377605698,1754452252786,-1745.18,0.00035616,14]
[377605699,1754452252795,-400.0,0.00035616,14]
[377605700,1754452252804,-591.2,0.00035616,14]
[377605701,1754452252813,-1279.93,0.00035616,14]
[377605702,1754452252822,-2197.65,0.00035616,14]
[377605703,1754452252832,-400.0,0.00035616,14]
[377605704,1754452252841,-400.0,0.00035616,14]
[377605705,1754452252851,-566.92,0.00035616,14]
[377605706,1754452252860,-3459.7,0.00035616,14]
[377605707,1754452252869,-400.0,0.00035616,14]
[377605708,1754452252879,-797.33,0.00035616,14]
[377605709,1754452252888,-1144.49,0.00035616,14]
[377605710,1754452252898,-400.0,0.00035616,14]
[377605711,1754452252907,-1266.18,0.00035616,14]
[377605712,1754452252916,-400.0,0.00035616,14]
[377605713,1754452252930,-400.0,0.00035616,14]
[377605714,1754452252939,-400.0,0.00035616,14]
[377605715,1754452252949,-400.0,0.00035616,14]
[377605716,1754452252958,-400.0,0.00035616,14]
[377605717,1754452252967,-466.41,0.00035616,14]
[377605718,1754452252976,-400.0,0.00035616,14]
[377605719,1754452252985,-400.0,0.00035616,14]
[377605720,1754452252995,-1313.53,0.00035616,14]
[377605721,1754452253005,-500.0,0.00035616,14]
[377605722,1754452253014,-453.34,0.00035616,14]
[377605723,1754452253023,-400.0,0.00035616,14]
[377605724,1754452253032,-400.0,0.00035616,14]
[377605725,1754452253042,-1485.15,0.00035616,14]
[377605726,1754452253051,-793.79,0.00035616,14]
[377605727,1754452253059,-400.0,0.00035616,14]
[377605728,1754452253068,-1790.78,0.00035616,14]
[377605729,1754452253077,-400.0,0.00035616,14]
[377605730,1754452253087,-1687.04,0.00035616,14]
[377605731,1754452253096,-1690.31,0.00035616,14]
[377605732,1754452253105,-1037.65,0.00035616,14]
[377605733,1754452253114,-402.4800845,0.00035616,14]
[377605734,1754452253124,-400.0,0.00035616,14]
[377605735,1754452253133,-772.45,0.00035616,14]
[377605736,1754452253142,-2033.45,0.00035616,14]
[377605737,1754452253151,-400.0,0.00035616,14]
[377605738,1754452253160,-1080.26,0.00035616,14]
[377605739,1754452253170,-400.0,0.00035616,14]
[377605740,1754452253179,-400.0,0.00035616,14]
[377605741,1754452253188,-2834.08,0.00035616,14]
[377605742,1754452253197,-2093.94,0.00035616,14]
[377605743,1754452253206,-400.0,0.00035616,14]
[377605744,1754452253216,-400.0,0.00035616,14]
[377605745,1754452253225,-400.0,0.00035616,14]
[377605746,1754452253234,-2138.09,0.00035616,14]
[377605747,1754452253243,-701.0,0.00035616,14]
[377605748,1754452253252,-400.0,0.00035616,14]
[377605749,1754452253262,-1101.93,0.00035616,14]
[377605750,1754452253271,-2007.62,0.00035616,14]
[377605751,1754452253281,-1239.79,0.00035616,14]
[377605752,1754452253290,-457.51,0.00035616,14]
[377605753,1754452253299,-400.0,0.00035616,14]
[377605754,1754452253308,-229.92710688,0.00035616,14]
[377605755,1754452253317,-1795.37,0.00035616,14]
[377605756,1754452253326,-400.0,0.00035616,14]
[377605757,1754452253336,-2662.73,0.00035616,14]
[377605758,1754452253346,-2137.98,0.00035616,14]
[377605759,1754452253356,-653.08,0.00035616,14]
[377605760,1754452253365,-400.0,0.00035616,14]
[377605761,1754452253374,-1606.0,0.00035616,14]
[377605762,1754452253384,-1803.83,0.00035616,14]
[377605763,1754452253393,-1139.0,0.00035616,14]
[377605764,1754452253402,-400.0,0.00035616,14]
[377605765,1754452253411,-400.0,0.00035616,14]
[377605766,1754452253420,-400.0,0.00035616,14]
[377605767,1754452253429,-893.64,0.00035616,14]
[377605768,1754452253439,-500.0,0.00035616,15]
[377605769,1754452253448,-1777.07,0.00035616,14]
[377605770,1754452253458,-500.0,0.00035616,15]
[377605771,1754452253467,-500.0,0.00035616,15]
[377605772,1754452253476,-500.0,0.00035616,15]
[377605773,1754452253485,-500.0,0.00035616,15]
[377605774,1754452253494,-500.0,0.00035616,15]
[377605775,1754452253504,-1890.55,0.00035616,14]
[377605776,1754452253514,-500.0,0.00035616,15]
[377605777,1754452253523,-400.0,0.00035616,14]
[377605778,1754452253532,-500.0,0.00035616,15]
[377605779,1754452253541,-400.0,0.00035616,14]
[377605780,1754452253551,-500.0,0.00035616,15]
[377605781,1754452253560,-500.0,0.00035616,15]
[377605782,1754452253569,-500.0,0.00035616,15]
[377605783,1754452253579,-500.0,0.00035616,15]
[377605784,1754452253587,-500.0,0.00035616,15]
[377605785,1754452253596,-500.0,0.00035616,15]
[377605786,1754452253605,-2396.5,0.00035616,14]
[377605787,1754452253614,-500.0,0.00035616,15]
[377605788,1754452253624,-619.38,0.00035616,14]
[377605789,1754452253633,-500.0,0.00035616,15]
[377605790,1754452253642,-500.0,0.00035616,15]
[377605791,1754452253651,-500.0,0.00035616,15]
[377605792,1754452253660,-500.0,0.00035616,15]
[377605793,1754452253669,-500.0,0.00035616,15]
[377605794,1754452253678,-500.0,0.00035616,15]
[377605795,1754452253688,-400.0,0.00035616,14]
[377605796,1754452253697,-500.0,0.00035616,15]
[377605797,1754452253706,-500.0,0.00035616,15]
[377605798,1754452253715,-268.97910817,0.00035616,15]
[377605799,1754452253739,-400.0,0.00035616,14]
[377605800,1754452253753,-408.12,0.00035616,14]
[377605801,1754452253763,-2356.82,0.00035616,14]
[377605802,1754452253773,-400.0,0.00035616,14]
[377605803,1754452253783,-1024.82,0.00035616,14]
[377605804,1754452253793,-446.72082124,0.00035616,14]
[377605805,1754452253802,-1473.78,0.00035616,14]
[377605806,1754452253812,-400.0,0.00035616,14]
[377605807,1754452253821,-566.41,0.00035616,14]
[377605808,1754452253830,-400.0,0.00035616,14]
[377605809,1754452253839,-400.0,0.00035616,14]
[377605810,1754452253848,-4463.44,0.00035616,14]
[377605811,1754452253858,-400.0,0.00035616,14]
[377605812,1754452253867,-400.0,0.00035616,14]
[377605813,1754452253877,-625.34,0.00035616,14]
[377605814,1754452253886,-685.32,0.00035616,14]
[377605815,1754452253895,-400.0,0.00035616,14]
[377605816,1754452253905,-400.0,0.00035616,14]
[377605817,1754452253919,-2370.26,0.00035616,14]
[377605818,1754452253928,-400.0,0.00035616,14]
[377605819,1754452253938,-1774.12,0.00035616,14]
[377605820,1754452253947,-857.23,0.00035616,14]
[377605821,1754452253959,-446.33,0.00035616,14]
[377605822,1754452253968,-400.0,0.00035616,14]
[377605823,1754452253978,-400.0,0.00035616,14]
[377605824,1754452253988,-2089.06,0.00035616,14]
[377605825,1754452253998,-500.0,0.00035616,14]
[377605826,1754452254010,-500.0,0.00035616,14]
[377605827,1754452254019,-500.0,0.00035616,14]
[377605828,1754452254028,-500.0,0.00035616,14]
[377605829,1754452254038,-400.0,0.00035616,14]
[377605830,1754452254048,-400.0,0.00035616,14]
[377605831,1754452254057,-400.0,0.00035616,14]
[377605832,1754452254067,-400.0,0.00035616,14]
[377605833,1754452254077,-400.0,0.00035616,14]
[377605834,1754452254086,-1452.44,0.00035616,14]
[377605835,1754452254098,-1167.64,0.00035616,14]
[377605836,1754452254109,-1675.46,0.00035616,14]
[377605837,1754452254119,-400.0,0.00035616,14]
[377605838,1754452254128,-400.0,0.00035616,14]
[377605839,1754452254137,-1851.3,0.00035616,14]
[377605840,1754452254148,-1850.96,0.00035616,14]
[377605841,1754452254158,-1854.54,0.00035616,14]
[377605842,1754452254167,-400.0,0.00035616,14]
[377605843,1754452254177,-1012.5,0.00035616,14]
[377605844,1754452254187,-1882.15,0.00035616,14]
[377605845,1754452254197,-632.65,0.00035616,14]
[377605846,1754452254207,-400.0,0.00035616,14]
[377605847,1754452254216,-400.0,0.00035616,14]
[377605848,1754452254226,-400.0,0.00035616,14]
[377605849,1754452254236,-500.0,0.00035616,14]
[377605850,1754452254245,-400.0,0.00035616,14]
[377605851,1754452254256,-1920.23,0.00035616,14]
[377605852,1754452254265,-419.57,0.00035616,14]
[377605853,1754452254274,-2219.38,0.00035616,14]
[377605854,1754452254284,-441.77,0.00035616,14]
[377605855,1754452254293,-1959.56,0.00035616,14]
[377605856,1754452254302,-400.0,0.00035616,14]
[377605857,1754452254311,-400.0,0.00035616,14]
[377605858,1754452254321,-1908.64,0.00035616,14]
[377605859,1754452254330,-400.0,0.00035616,14]
[377605860,1754452254339,-400.0,0.00035616,14]
[377605861,1754452254350,-474.89,0.00035616,14]
[377605862,1754452254360,-815.58,0.00035616,14]
[377605863,1754452254369,-400.0,0.00035616,14]
[377605864,1754452254379,-2575.96,0.00035616,14]
[377605865,1754452254388,-471.85,0.00035616,14]
[377605866,1754452254398,-400.0,0.00035616,14]
[377605867,1754452254407,-501.84,0.00035616,14]
[377605868,1754452254415,-1455.67,0.00035616,14]
[377605869,1754452254424,-416.99,0.00035616,14]
[377605870,1754452254434,-1455.67,0.00035616,14]
[377605871,1754452254443,-1455.67,0.00035616,14]
[377605872,1754452254452,-400.0,0.00035616,14]
[377605873,1754452254461,-1455.67,0.00035616,14]
[377605874,1754452254470,-1455.67,0.00035616,14]
[377605875,1754452254479,-1455.67,0.00035616,14]
[377605876,1754452254488,-400.0,0.00035616,14]
[377605877,1754452254497,-1455.67,0.00035616,14]
[377605878,1754452254507,-1103.86,0.00035616,14]
[377605879,1754452254516,-1455.67,0.00035616,14]
[377605880,1754452254525,-1610.91,0.00035616,14]
[377605881,1754452254535,-1455.67,0.00035616,14]
[377605882,1754452254544,-1455.67,0.00035616,14]
[377605883,1754452254553,-1455.67,0.00035616,14]
[377605884,1754452254563,-400.0,0.00035616,14]
[377605885,1754452254572,-1455.67,0.00035616,14]
[377605886,1754452254581,-1455.67,0.00035616,14]
[377605887,1754452254590,-694.23,0.00035616,14]
[377605888,1754452254599,-1455.67,0.00035616,14]
[377605889,1754452254608,-1455.67,0.00035616,14]
[377605890,1754452254618,-1455.67,0.00035616,14]
[377605891,1754452254627,-1455.67,0.00035616,14]
[377605892,1754452254636,-400.0,0.00035616,14]
[377605893,1754452254645,-1455.67,0.00035616,14]
[377605894,1754452254654,-1455.67,0.00035616,14]
[377605895,1754452254663,-1455.67,0.00035616,14]
[377605896,1754452254671,-2747.19,0.00035616,14]
[377605897,1754452254680,-1455.67,0.00035616,14]
[377605898,1754452254690,-1455.67,0.00035616,14]
[377605899,1754452254699,-1455.67,0.00035616,14]
[377605900,1754452254708,-400.0,0.00035616,14]
[377605901,1754452254718,-1455.67102505,0.00035616,14]
[377605902,1754452254727,-1305.11,0.00035616,14]
[377605903,1754452254736,-400.0,0.00035616,14]
[377605904,1754452254745,-400.0,0.00035616,14]
[377605905,1754452254755,-400.0,0.00035616,14]
[377605906,1754452254766,-736.98,0.00035616,14]
[377605907,1754452254775,-1979.39,0.00035616,14]
[377605908,1754452254785,-400.0,0.00035616,14]
[377605909,1754452254794,-400.0,0.00035616,14]
[377605910,1754452254804,-400.0,0.00035616,14]
[377605911,1754452254813,-2033.05,0.00035616,14]
[377605912,1754452254823,-400.0,0.00035616,14]
[377605913,1754452254832,-2098.73,0.00035616,14]
[377605914,1754452254841,-2104.81,0.00035616,14]
[377605915,1754452254850,-402.65,0.00035616,14]
[377605916,1754452254860,-687.25,0.00035616,14]
[377605917,1754452254869,-903.73,0.00035616,14]
[377605918,1754452254878,-1329.24,0.00035616,14]
[377605919,1754452254888,-543.81843664,0.00035616,14]
[377605920,1754452254897,-784.66,0.00035616,14]
[377605921,1754452254906,-400.0,0.00035616,14]
[377605922,1754452254916,-400.0,0.00035616,14]
[377605923,1754452254928,-2103.57,0.00035616,14]
[377605924,1754452254937,-400.0,0.00035616,14]
[377605925,1754452254946,-1918.67,0.00035616,14]
[377605926,1754452254956,-400.0,0.00035616,14]
[377605927,1754452254966,-400.0,0.00035616,14]
[377605928,1754452254974,-401.35314624,0.00035616,14]
[377605929,1754452254983,-704.52,0.00035616,14]
[377605930,1754452254992,-400.0,0.00035616,14]
[377605931,1754452255005,-500.0,0.00035616,14]
[377605932,1754452255015,-500.0,0.00035616,14]
[377605933,1754452255024,-500.0,0.00035616,14]
[377605934,1754452255033,-400.0,0.00035616,14]
[377605935,1754452255042,-626.69952991,0.00035616,14]
[377605936,1754452255052,-417.98,0.00035616,14]
[377605937,1754452255062,-492.98,0.00035616,14]
[377605938,1754452255071,-927.19,0.00035616,14]
[377605939,1754452255081,-1050.14,0.00035616,14]
[377605940,1754452255090,-500.0,0.00035616,14]
[377605941,1754452255100,-2036.51,0.00035616,14]
[377605942,1754452255110,-500.0,0.00035616,14]
[377605943,1754452255120,-910.42,0.00035616,14]
[377605944,1754452255129,-500.0,0.00035616,14]
[377605945,1754452255138,-500.0,0.00035616,14]
[377605946,1754452255147,-500.0,0.00035616,14]
[377605947,1754452255157,-400.0,0.00035616,14]
[377605948,1754452255166,-400.0,0.00035616,120]
[377605949,1754452255173,-400.0,0.00035616,14]
[377605950,1754452255181,-256.6610664,0.00035616,14]
[377605951,1754452255190,-1622.49,0.00035616,14]
[377605952,1754452255198,-1989.32,0.00035616,14]
[377605953,1754452255207,-1763.59,0.00035616,14]
[377605954,1754452255215,-400.0,0.00035616,14]
[377605955,1754452255224,-409.64271539,0.00035616,14]
[377605956,1754452255233,-2155.04,0.00035616,14]
[377605957,1754452255241,-1368.61,0.00035616,14]
[377605958,1754452255250,-2201.77,0.00035616,14]
[377605959,1754452255259,-400.0,0.00035616,14]
[377605960,1754452255268,-400.0,0.00035616,14]
[377605961,1754452255275,-400.0,0.00035616,14]
[377605962,1754452255284,-428.82,0.00035616,14]
[377605963,1754452255293,-522.3,0.00035616,14]
[377605964,1754452255302,-400.0,0.00035616,14]
[377605965,1754452255312,-1785.77,0.00035616,14]
[377605966,1754452255321,-1104.39,0.00035616,14]
[377605967,1754452255331,-400.0,0.00035616,14]